Workbook

Sheet Instructions
H4: REMEMBER
G6: In order to Print a specific budget
C7: Budget | D7: Button | G7: you must Calculate before you
C8: Type | G8: Print that particular budget.
C10: TOTAL
C11: COST
C13: CASH
C14: FLOW
C16: VARIABLE
C17: COST
C19: Note: Be sure to enable all
C20: macros on start-up.

Sheet Main
B1: Stockering Steers On Temporary Winter Grazing, Hay & Supplement | U1: 3
B2: R. Curt Lacy and Lawton Stewart
B3: Agricultural & Applied Economics and Animal & Dairy Sciences Department
X4: 1 | Y4: 2 | Z4: 3
B5: University of Georgia Cooperative Extension Service
Z6: (Total Cost Budget)
B7: October 2012 | Z7: (Cash Flow Budget)
Z8: (Variable Cost Budget)
B10: INPUT DATA: Your values in the unprotected or highlighted cells | Z10: RISK RATED RETURNS OVER TOTAL COST
Z11: RISK RATED RETURNS OVER CASH FLOW COST
Z12: RISK RATED RETURNS OVER VARIABLE COST
B15: Stockering Steers On Temporary Winter Grazing, Hay & Supplement - 500# Steer
B16: (Variable Cost Budget)
B18: NUMBER OF ACRES | F18: 50 | H18: In Date | J18: 2012-11-01
B19: STOCKING RATE (HEAD/ACRE) | F19: 2 | H19: Out Date | J19: =+J18+F23 -> 2013-04-15
B20: NUMBER OF CALVES PLACED | F20: =F18*F19 -> 100
B21: DEATH LOSS (%) | F21: 1
B22: NUMBER OF CALVES SOLD | F22: =+F20*((100-F21)/100) -> 99
B23: FEEDING PERIOD (DAYS) | F23: 165
F25: BEST | G25: OPT. | H25: MEDIAN | I25: PESS. | J25: WORST
B26: PAYWEIGHT TO PAYWEIGHT | F26: 3 | G26: =+H26+0.25 -> 2.25 | H26: 2 | I26: =+H26-0.25 -> 1.75 | J26: 1.5
B27: DAILY GAIN (LBS./DAY)
B28: NET SELLING WEIGHT (CWT.) | F28: =(F26*F23/100+F35) -> 9.95 | G28: =(G26*F23/100+F35) -> 8.7125 | H28: =(H26*F23/100+F35) -> 8.3 | I28: =(I26*F23/100+F35) -> 7.8875 | J28: =(J26*F23/100+F35) -> 7.475
B29: SELLING PRICE ($/CWT.) | F29: 145 | G29: =+(F29+H29)/2 -> 135 | H29: 125 | I29: =+(H29+J29)/2 -> 120 | J29: 115
B31: Item | E31: Unit | F31: Units Per Head | G31: Total Quantity (units) | H31: Unit Price ($/Unit) | I31: Total Amount
B34: VARIABLE COSTS:
B35: CALF | E35: CWT. | F35: 5 | G35: =+F35*placed -> 500 | H35: 137.5 | I35: =G35*H35 -> 68750
A36: Procurement Detail | B36: PROCUREMENT COST | E36: HEAD | F36: 1 | G36: 100 | H36: =+Procurement!H10 -> 11.29411765 | I36: 1129.411765
A37: Winter Grazing Detail | B37: WINTER GRAZING | E37: ACRE | F37: 0.6 | G37: 60 | H37: =+tvc_grazing/ACRES -> 119.7479795 | I37: 7184.878767
B38: HAY | E38: TON | F38: 0.25 | G38: 25 | H38: 100 | I38: 2500
B39: RECEIVING RATION | E39: TONS | F39: =+((F35*100)*0.02*21)/2000 -> 0.105 | G39: 10.5 | H39: 275 | I39: 2887.5
B40: SUPPLEMENTAL FEED | E40: TONS | F40: =+(((((H28*100)-(F35*100)))/2+F35)*0.025*FEEDING_PERIOD)/2000 -> 0.350625 | G40: 35.0625 | H40: 275 | I40: 9642.1875
B41: MINERAL + IONOPHORE | E41: LBS. | F41: =+F23*0.25 -> 41.25 | G41: 4125 | H41: 0.28 | I41: 1155 | Q41: *
B42: MEDICATION,WORM,VAC. | E42: HEAD | F42: 2 | G42: 200 | H42: 4 | I42: 800
B43: GROW.STIMULANT | E43: IMPLANT | F43: 2 | G43: 200 | H43: 1 | I43: 200
B44: REPAIRS | E44: HEAD | F44: 1 | G44: 100 | H44: =AVERAGE(Fixed_Cost!F30:G31)*0.02/Fixed_Cost!G6 -> 0.8023076923 | I44: 80.23076923
B45: LAND RENTAL | E45: ACRE | F45: 3 | G45: 300 | H45: 25 | I45: 7500
B46: LABOR | E46: HRS. | F46: 1.25 | G46: 125 | H46: 0 | I46: 0
B47: DEATH LOSS | E47: PERCENT | F47: 0.01 | G47: =+SUM(I35:I46) -> 101829.2088 | H47: =+G47*F47 -> 1018.292088 | I47: =+F47*G47 -> 1018.292088
B48: INTEREST ON CALF | E48: PERCENT | F48: 0.08 | G48: =+I35*0.5 -> 34375 | H48: =+(FEEDING_PERIOD/365*F48) -> 0.03616438356 | I48: =+H48*G48 -> 1243.150685
B49: INTEREST ON OTHER EXPENSES | E49: PERCENT | F49: 0.08 | G49: =+(SUM(I36:I47)-I37)*0.5 -> 13456.31106 | H49: =+(FEEDING_PERIOD/365*F49) -> 0.03616438356 | I49: =+H49*G49 -> 486.6391945
A50: Auction & Hauling Detail | B50: AUCTION AND HAULING | E50: HEAD | F50: 1 | G50: =F50*F20 -> 100 | H50: =+mktng_cst -> 20.75 | I50: =G50*H50 -> 2075
B52: TOTAL VARIABLE COST | I52: =SUM(I35:I50) -> 106652.2908
B54: =+IF(bud_type=3,"No Fixed Costs for Variable Cost Budget","FIXED COST:(Click Appropriate Link at Left for Annual Fixed Cost)") -> No Fixed Costs for Variable Cost Budget
A55: Total Cost | B55: =+IF(bud_type=1,"Total Cattle Equipment Fixed Costs",IF(bud_type=2,"Total Fixed Cash Payments","")) ->  | E55: =+IF(bud_type<>3,"Head Sold","") ->  | F55: =+IF(bud_type<>3,+ROUNDUP(sold,0),0) -> 0 | H55: =+IF(bud_type<>3,I55/sold,0) -> 0 | I55: =+IF(bud_type=1,cattle_fixed,IF(bud_type=2,cf_total,0)) -> 0
A56: Cash Flow | B56: =+IF(bud_type=1,"Total Machinery Fixed Costs","") ->  | E56: =+IF(bud_type=1,"Acres","") ->  | F56: =+IF(bud_type=1,ACRES,0) -> 0 | H56: =+IF(bud_type=1,I56/ACRES,0) -> 0 | I56: =+IF(bud_type=1,mach_fixed,0) -> 0
B57: =+IF(bud_type=1,"Overhead","") ->  | E57: =+IF(bud_type=1,"Head Sold","") ->  | F57: =+IF(bud_type=1,+ROUNDUP(sold,0),0) -> 0 | H57: 0 | I57: =+IF(bud_type=1,H57*F57,0) -> 0
B58: =+IF(bud_type=1,"Management ","") ->  | E58: =+IF(bud_type=1,"% of Value Added","") ->  | F58: =+IF(bud_type=1,(H88-I35),0) -> 0 | H58: 0.06 | I58: =+IF(bud_type=1,H58*F58,0) -> 0
B59: =+IF(bud_type=1,"Land","") ->  | E59: =+IF(bud_type=1,"Acres","") ->  | F59: =+IF(bud_type=1,ACRES,0) -> 0 | H59: 0 | I59: =+IF(bud_type=1,H59*F59,0) -> 0
B60: TOTAL FIXED COST | I60: =SUM(I55:I59) -> 0
B62: COST OF GAIN SUMMARY AND MAX. BREAKEVEN CALF PRICE
I63: $/CWT.
B64: FEED ONLY COST OF GAIN ($/CWT.) | I64: =SUM(I37:I41)/(D88-G35) -> 71.91365975
B65: FEEDING COST OF GAIN ($/CWT.) | I65: =+(+I52-I35-I36-I50)/(D88-G35) -> 106.7735462
B66: TOTAL COST OF GAIN ($/CWT.) | I66: =+(+F80-I35-I36-I50)/(D88-G35) -> 106.7735462
B68: MAX. BREAKEVEN PURCHASE PRICE OF CALF | I68: =+(+H88-(+F80-I35))/G35 -> 133.1595596
B71: EXPECTED BREAKEVEN TABLE
B73: ITEM | E73: TOTAL AMOUNT | H73: $ / CWT. | I73: $/HD.
B74: VARIABLE COST | F74: =I52 -> 106652.2908 | H74: =F74/(U168*F20) -> 127.9878684 | I74: =+F74/sold -> 1077.295866
B75: =+B55 ->  | F75: =IF(I55>0,I55,0) -> 0 | H75: =IF(F75>0,F75/(U168*F20),0) -> 0 | I75: 0
B76: =+B56 ->  | F76: =I56 -> 0 | H76: =F76/(U168*F20) -> 0 | I76: 0
B77: =+B57 ->  | F77: =I57 -> 0 | H77: =F77/(U168*F20) -> 0 | I77: 0
B78: =+B58 ->  | F78: =I58 -> 0 | H78: =F78/(U168*F20) -> 0 | I78: 0
B79: =+B59 ->  | F79: =I59 -> 0 | H79: =F79/(U168*F20) -> 0 | I79: 0
B80: TOTAL COST | F80: =SUM(F74:F79) -> 106652.2908 | H80: =F80/(U168*F20) -> 127.9878684 | I80: 1077.295866
B83: EXPECTED RETURN TABLE
E84: =+sold -> 99 | F84: head sold
B86: EXP. WEIGHT | D86: TOTAL WEIGHT | F86: EXP. PRICE | H86: TOTAL RETURN
B87: (cwt./hd.) | D87: (cwt.) | F87: ($/cwt.)
B88: =+U168 -> 8.333 | D88: =+B88*sold -> 824.967 | F88: =+W168 -> 126.65 | H88: =+F88*D88 -> 104482.0705
B90: RISK RATED RETURNS OVER VARIABLE COST
B91: RISK RATED RETURNS OVER VARIABLE COST
B93: Net return levels (TOP ROW);
B94: The chances of obtaining this level or more (MIDDLE ROW); and
B95: The chances of obtaining this level or less (BOTTOM ROW).
E97: Optimistic | G97: Expected | I97: Pessimistic
B98: Returns | D98: =U207:U207+1.5*W206:W206 -> 13932.78566 | E98: =U207:U207+W206:W206 -> 8916.908518 | F98: =U207:U207+0.5*W206:W206 -> 3901.031375 | G98: =U207:U207 -> -1114.845769 | H98: =U207:U207-0.5*W207:W207 -> -5177.37063 | I98: =U207:U207-W207:W207 -> -9239.895492 | J98: =U207:U207-1.5*W207:W207 -> -13302.42035
B99: Chances | D99: =IF(V210<1,IF(U210,Z210,1-Z210),IF(U210,Z211,1-Z211)) -> 0.07525824849 | E99: =IF(AB210<1,IF(AA210,AF210,1-AF210),IF(AA210,AF211,1-AF211)) -> 0.1585877769 | F99: =IF(AH210<1,IF(AG210,AL210,1-AL210),IF(AG210,AL211,1-AL211)) -> 0.283938213 | G99: =IF(V212<1,IF(U212,Z212,1-Z212),IF(U212,Z213,1-Z213)) -> 0.4725999424 | H99: =IF(AB212<1,IF(AA212,AF212,1-AF212),IF(AA212,AF213,1-AF213)) -> 0.6605607646 | I99: =IF(AH212<1,IF(AG212,AL212,1-AL212),IF(AG212,AL213,1-AL213)) -> 0.8412469534 | J99: =IF(V214<1,IF(U214,Z214,1-Z214),IF(U214,Z215,1-Z215)) -> 0.94524215
B100: Chances | D100: =IF(V210<1,IF(U210,1-Z210,Z210),IF(U210,1-Z211,Z211)) -> 0.9247417515 | E100: =IF(AB210<1,IF(AA210,1-AF210,AF210),IF(AA210,1-AF211,AF211)) -> 0.8414122231 | F100: =IF(AH210<1,IF(AG210,1-AL210,AL210),IF(AG210,1-AL211,AL211)) -> 0.716061787 | G100: =IF(V212<1,IF(U212,1-Z212,Z212),IF(U212,1-Z213,Z213)) -> 0.5274000576 | H100: =IF(AB212<1,IF(AA212,1-AF212,AF212),IF(AA212,1-AF213,AF213)) -> 0.3394392354 | I100: =IF(AH212<1,IF(AG212,1-AL212,AL212),IF(AG212,1-AL213,AL213)) -> 0.1587530466 | J100: =IF(V214<1,IF(U214,1-Z214,Z214),IF(U214,1-Z215,Z215)) -> 0.05475784997
B102: CHANCE FOR PROFIT | E102: =IF(AB214<1,IF(AA214,AF214,1-AF214),IF(AA214,AF215,1-AF215)) -> 0.4257191831 | F102: BASE BUDGETED NET REVENUE | J102: =+ENR -> -1114.845769
F103: Profit (Loss) Per Head Placed | J103: =+J102/placed -> -11.14845769
B105: PROFIT IS RETURN TO RISK AND ALL "ZERO" ITEMS IN THE BUDGET.
B106: MAY ENTER YOUR OWN VALUES.
T153: * | U153: Must match budget Entries | Y153: * | AV153: 1
T154: * | U154: - | Y154: *
T155: * | U155: =+F20 -> 100 | V155: HEAD | Y155: *
T156: * | U156: =+F28 -> 9.95 | V156: Best Y | W156: =+F29 -> 145 | X156: Best P | Y156: *
P157: % | T157: * | U157: =+G28 -> 8.7125 | V157: Opt. Y | W157: =+G29 -> 135 | X157: Opt. P | Y157: *
T158: * | U158: =+H28 -> 8.3 | V158: Med. Y | W158: =H29 -> 125 | X158: Med. P | Y158: *
T159: * | U159: =+I28 -> 7.8875 | V159: Pess. Y | W159: =I29 -> 120 | X159: Pess. P | Y159: *
T160: * | U160: =+J28 -> 7.475 | V160: Worst Y | W160: =J29 -> 115 | X160: Worst P | Y160: *
T161: * | U161: 0 | V161: H&MC | Y161: *
T162: * | U162: =+F80 -> 106652.2908 | V162: T.C. | Y162: *
T163: * | U163: * | Y163: *
T164: : | U164: - | Y164: :
T166: : | V166: Calculations | Y166: :
T167: : | U167: - | Y167: :
T168: : | U168: =0.04*U156+0.25*U157+0.42*U158+0.25*U159+0.04*U160 -> 8.333 | V168: Exp. Y | W168: =0.04*W156+0.25*W157+0.42*W158+0.25*W159+0.04*W160 -> 126.65 | X168: Exp. P | Y168: :
T169: : | U169: =0.25*(U156-U168)+0.5*(U157-U168) -> 0.594 | V169: SYO | W169: =0.25*(W156-W168)+0.5*(W157-W168) -> 8.7625 | X169: SPO | Y169: :
T170: : | U170: =0.25*(U168-U160)+0.5*(U168-U159) -> 0.43725 | V170: SYP | W170: =0.25*(W168-W160)+0.5*(W168-W159) -> 6.2375 | X170: SPP | Y170: :
T180: : | U180: =U169^2 -> 0.352836 | V180: VYO | W180: =W169^2 -> 76.78140625 | X180: VPO | Y180: :
T181: : | U181: =U170^2 -> 0.1911875625 | V181: VYP | W181: =W170^2 -> 38.90640625 | X181: VPP | Y181: :
T182: : | U182: - | Y182: :
T183: : | U183: =(U168^2*W180)+(W168-U161)^2*U180 -> 10991.18349 | V183: VTRHH | W183: =(U168^2*W181)+(W168-U161)^2*U181 -> 5768.308667 | X183: VTRLL | Y183: :
T184: : | U184: =(U168^2*W180)+(W168-U161)^2*U181 -> 8398.306588 | V184: VTRHL | W184: =U168^2*W181+(W168-U161)^2*U180 -> 8361.185571 | X184: VTRLH | Y184: :
T185: : | U185: =SQRT(U183) -> 104.8388453 | V185: STRHH | W185: =SQRT(W183) -> 75.94938227 | X185: STRLL | Y185: :
T187: : | U187: =SQRT(U184) -> 91.64227511 | V187: STRHL | W187: =SQRT(W184) -> 91.43951865 | X187: STRLH | Y187: :
T188: : | U188: =0.66*U185+0.17*U187+0.17*W187 -> 100.3175429 | V188: STRO | W188: =0.66*W185+0.17*U187+0.17*W187 -> 81.25049724 | X188: STRP | Y188: :
T189: : | U189: - | Y189: :
T190: : | U190: Calculation of NR and for Z values | Y190: :
T200: : | U200: - | Y200: :
T201: : | U201: =W158 -> 125 | V201: MP | W201: =+U207-U205 -> 629.2125057 | X201: ENR_MNR | Y201: : | AO201: 1
T202: : | U202: =U158 -> 8.3 | V202: MY | W202: =U155*U185 -> 10483.88453 | X202: STRHH | Y202: :
T203: : | U203: =+U206+0.33*(W207-W206) -> 104908.2325 | V203: MTR | W203: =U155*W185 -> 7594.938227 | X203: STRLL | Y203: :
T204: : | U204: =+F80 -> 106652.2908 | V204: MTC | W204: =U155*U187 -> 9164.227511 | X204: STRHL | Y204: :
T205: : | U205: =U203-U204 -> -1744.058274 | V205: MNR | W205: =U155*W187 -> 9143.951865 | X205: STRLH | Y205: :
T206: : | U206: =U155*U168*W168 -> 105537.445 | V206: ETR | W206: =U155*U188 -> 10031.75429 | X206: STRO | Y206: :
T207: : | U207: =U206-U204 -> -1114.845769 | V207: ENR | W207: =U155*W188 -> 8125.049724 | X207: STRP | Y207: :
T208: : | U208: - | Y208: :
U210: =+D98>=U205 -> TRUE | V210: =ABS((D98-U207)/IF(U210,W206,W207)) -> 1.5 | W210: =MIN(2.5,ABS((D98-(U205+W201*ABS(D98-U205)/ABS(IF(U210,W206+W201,W207-W201))*MIN(1,V210)))/(MIN(1.52,V210)/1.52*IF(U210,W202,W203)+(1.52-MIN(1.52,V210))/3.04*W204+(1.52-MIN(1.52,V210))/3.04*W205))) -> 1.409425523 | X210: =1/(1+(0.2316419*W210)) -> 0.7538737769 | Y210: =0.398942281*((2.71828)^((-(W210^2)/2))) -> 0.147758216 | Z210: =Y210*(0.31938153*X210-0.356563782*X210^2+1.781477937*X210^3-1.821255978*X210^4+1.330274429*X210^5) -> 0.07935479384 | AA210: =+E98>=U205 -> TRUE | AB210: =ABS((E98-U207)/IF(AA210,W206,W207)) -> 1 | AC210: =MIN(2.5,ABS((E98-(U205+W201*ABS(E98-U205)/ABS(IF(AA210,W206+W201,W207-W201))*MIN(1,AB210)))/(MIN(1.52,AB210)/1.52*IF(AA210,W202,W203)+(1.52-MIN(1.52,AB210))/3.04*W204+(1.52-MIN(1.52,AB210))/3.04*W205))) -> 1.000279149 | AD210: =1/(1+(0.2316419*AC210)) -> 0.8118816855 | AE210: =0.398942281*((2.71828)^((-(AC210^2)/2))) -> 0.2419032605 | AF210: =AE210*(0.31938153*AD210-0.356563782*AD210^2+1.781477937*AD210^3-1.821255978*AD210^4+1.330274429*AD210^5) -> 0.1585877769 | AG210: =+F98>=U205 -> TRUE | AH210: =ABS((F98-U207)/IF(AG210,W206,W207)) -> 0.5 | AI210: =MIN(2.5,ABS((F98-(U205+W201*ABS(F98-U205)/ABS(IF(AG210,W206+W201,W207-W201))*MIN(1,AH210)))/(MIN(1.52,AH210)/1.52*IF(AG210,W202,W203)+(1.52-MIN(1.52,AH210))/3.04*W204+(1.52-MIN(1.52,AH210))/3.04*W205))) -> 0.5711817523 | AJ210: =1/(1+(0.2316419*AI210)) -> 0.8831506655 | AK210: =0.398942281*((2.71828)^((-(AI210^2)/2))) -> 0.3388957575 | AL210: =AK210*(0.31938153*AJ210-0.356563782*AJ210^2+1.781477937*AJ210^3-1.821255978*AJ210^4+1.330274429*AJ210^5) -> 0.283938213
W211: =MIN(2.5,ABS((D98-U207)/(MIN(1.52,V210)/1.52*IF(U210,W202,W203)+(1.52-MIN(1.52,V210))/3.04*W204+(1.52-MIN(1.52,V210))/3.04*W205))) -> 1.437710176 | X211: 0.7501684596 | Y211: 0.1419269044 | Z211: 0.07525824849 | AC211: =MIN(2.5,ABS((E98-U207)/(MIN(1.52,AB210)/1.52*IF(AA210,W202,W203)+(1.52-MIN(1.52,AB210))/3.04*W204+(1.52-MIN(1.52,AB210))/3.04*W205))) -> 1.000279149 | AD211: 0.8118816855 | AE211: 0.2419032605 | AF211: 0.1585877769 | AI211: =MIN(2.5,ABS((F98-U207)/(MIN(1.52,AH210)/1.52*IF(AG210,W202,W203)+(1.52-MIN(1.52,AH210))/3.04*W204+(1.52-MIN(1.52,AH210))/3.04*W205))) -> 0.5229490207 | AJ211: =1/(1+(0.2316419*AI211)) -> 0.8919517284 | AK211: =0.398942281*((2.71828)^((-(AI211^2)/2))) -> 0.3479570317 | AL211: =AK211*(0.31938153*AJ211-0.356563782*AJ211^2+1.781477937*AJ211^3-1.821255978*AJ211^4+1.330274429*AJ211^5) -> 0.3005048744
U212: =+G98>=U205 -> TRUE | V212: =ABS((G98-U207)/IF(U212,W206,W207)) -> 0 | W212: =MIN(2.5,ABS((G98-(U205+W201*ABS(G98-U205)/ABS(IF(U212,W206+W201,W207-W201))*MIN(1,V212)))/(MIN(1.52,V212)/1.52*IF(U212,W202,W203)+(1.52-MIN(1.52,V212))/3.04*W204+(1.52-MIN(1.52,V212))/3.04*W205))) -> 0.06873567194 | X212: 0.9843274772 | Y212: 0.398000974 | Z212: 0.4725999424 | AA212: =+H98>=U205 -> FALSE | AB212: =ABS((H98-U207)/IF(AA212,W206,W207)) -> 0.5 | AC212: =MIN(2.5,ABS((H98-(U205+W201*ABS(H98-U205)/ABS(IF(AA212,W206+W201,W207-W201))*MIN(1,AB212)))/(MIN(1.52,AB212)/1.52*IF(AA212,W202,W203)+(1.52-MIN(1.52,AB212))/3.04*W204+(1.52-MIN(1.52,AB212))/3.04*W205))) -> 0.4139942008 | AD212: 0.9124933452 | AE212: 0.3661786049 | AF212: 0.3394392354 | AG212: =+I98>=U205 -> FALSE | AH212: =ABS((I98-U207)/IF(AG212,W206,W207)) -> 1 | AI212: =MIN(2.5,ABS((I98-(U205+W201*ABS(I98-U205)/ABS(IF(AG212,W206+W201,W207-W201))*MIN(1,AH212)))/(MIN(1.52,AH212)/1.52*IF(AG212,W202,W203)+(1.52-MIN(1.52,AH212))/3.04*W204+(1.52-MIN(1.52,AH212))/3.04*W205))) -> 0.999596175 | AJ212: =1/(1+(0.2316419*AI212)) -> 0.8119859802 | AK212: =0.398942281*((2.71828)^((-(AI212^2)/2))) -> 0.2420685201 | AL212: =AK212*(0.31938153*AJ212-0.356563782*AJ212^2+1.781477937*AJ212^3-1.821255978*AJ212^4+1.330274429*AJ212^5) -> 0.1587530466
W213: =MIN(2.5,ABS((G98-U207)/(MIN(1.52,V212)/1.52*IF(U212,W202,W203)+(1.52-MIN(1.52,V212))/3.04*W204+(1.52-MIN(1.52,V212))/3.04*W205))) -> 0 | X213: 1 | Y213: 0.398942281 | Z213: 0.5000000002 | AC213: =MIN(2.5,ABS((H98-U207)/(MIN(1.52,AB212)/1.52*IF(AA212,W202,W203)+(1.52-MIN(1.52,AB212))/3.04*W204+(1.52-MIN(1.52,AB212))/3.04*W205))) -> 0.4701337463 | AD213: 0.9017923964 | AE213: 0.3572028944 | AF213: 0.3191297666 | AI213: =MIN(2.5,ABS((I98-U207)/(MIN(1.52,AH212)/1.52*IF(AG212,W202,W203)+(1.52-MIN(1.52,AH212))/3.04*W204+(1.52-MIN(1.52,AH212))/3.04*W205))) -> 0.999596175 | AJ213: =1/(1+(0.2316419*AI213)) -> 0.8119859802 | AK213: =0.398942281*((2.71828)^((-(AI213^2)/2))) -> 0.2420685201 | AL213: =AK213*(0.31938153*AJ213-0.356563782*AJ213^2+1.781477937*AJ213^3-1.821255978*AJ213^4+1.330274429*AJ213^5) -> 0.1587530466
U214: =+J98>=U205 -> FALSE | V214: =ABS((J98-U207)/IF(U214,W206,W207)) -> 1.5 | W214: =MIN(2.5,ABS((J98-(U205+W201*ABS(J98-U205)/ABS(IF(U214,W206+W201,W207-W201))*MIN(1,V214)))/(MIN(1.52,V214)/1.52*IF(U214,W202,W203)+(1.52-MIN(1.52,V214))/3.04*W204+(1.52-MIN(1.52,V214))/3.04*W205))) -> 1.645153449 | X214: 0.7240676245 | Y214: 0.1030848796 | Z214: 0.04996911513 | AA214: =0>=U205 -> TRUE | AB214: =ABS((0-U207)/IF(AA214,W206,W207)) -> 0.1111316861 | AC214: =MIN(2.5,ABS((0-(U205+W201*ABS(0-U205)/ABS(IF(AA214,W206+W201,W207-W201))*MIN(1,AB214)))/(MIN(1.52,AB214)/1.52*IF(AA214,W202,W203)+(1.52-MIN(1.52,AB214))/3.04*W204+(1.52-MIN(1.52,AB214))/3.04*W205))) -> 0.1872835359 | AD214: 0.9584210918 | AE214: 0.3920068043 | AF214: 0.4257191831
W215: =MIN(2.5,ABS((J98-U207)/(MIN(1.52,V214)/1.52*IF(U214,W202,W203)+(1.52-MIN(1.52,V214))/3.04*W204+(1.52-MIN(1.52,V214))/3.04*W205))) -> 1.600374132 | X215: 0.7295469482 | Y215: 0.1108545441 | Z215: 0.05475784997 | AC215: =MIN(2.5,ABS((0-U207)/(MIN(1.52,AB214)/1.52*IF(AA214,W202,W203)+(1.52-MIN(1.52,AB214))/3.04*W204+(1.52-MIN(1.52,AB214))/3.04*W205))) -> 0.1205067365 | AD215: 0.9728436442 | AE215: 0.3960560792 | AF215: 0.4520408301
U219: EXPDATA:
U220: =U155 -> 100 | V220: =U168 -> 8.333 | W220: =W168 -> 126.65 | X220: =I80 -> 1077.295866 | Y220: =W206 -> 10031.75429 | Z220: =W207 -> 8125.049724 | AA220: =W202 -> 10483.88453 | AB220: =W204 -> 9164.227511 | AC220: =W203 -> 7594.938227 | AD220: =W205 -> 9143.951865

Sheet Winter Grazing
B1: Winter Annual Grazing Budget | R1: 3 | X1: 3 | Y1: 2 | Z1: 1
B3: Ext. Ag. Econ. Dept., Univ. of Ga. | Z3: (Total Cost Budget)
D4: FALL 2012 | Z4: (Cash Flow Budget)
Z5: (Variable Cost Budget)
B7: INPUT DATA: Your values in the unprotected or highlighted cells | Z7: DIRECT FIXED COST
Z8: ANNUAL FIXED PAYMENT
Z9: DIRECT FIXED COST
Z11: RISK RATED RETURNS OVER TOTAL COST
B12: Temporary Winter Grazing | Z12: RISK RATED RETURNS OVER CASH FLOW COST
Z13: RISK RATED RETURNS OVER VARIABLE COST
F15: (Variable Cost Budget) | J15: Return to Main budget
B16: Number of Acres | F16: =+ACRES -> 50
B17: Number of 1,000 # Animal Units/acre | F17: 1
B18: Expected number of grazing days/acre | F18: 150
G22: UNITS | H22: TOTAL | I22: UNIT | J22: TOTAL | K22: $/Acre
B23: ITEM | F23: UNIT | G23: PER ACRE | H23: QUANTITY | I23: PRICE | J23: AMOUNT
B24: VARIABLE COSTS: | H24: (units) | I24: ($/unit)
B25: SEED
B26: Rye | F26: LBS. | G26: 60 | H26: =G26*ACRES -> 3000 | I26: 0.31 | J26: =H26*I26 -> 930 | K26: =+J26/ACRES -> 18.6
B27: Ryegrass | F27: LBS. | G27: 15 | H27: =G27*ACRES -> 750 | I27: 0.38 | J27: =H27*I27 -> 285 | K27: 5.7
B28: Arrowleaf Clover | F28: LBS. | G28: 0 | H28: =G28*ACRES -> 0 | I28: 2 | J28: =H28*I28 -> 0 | K28: 0
B29: Other | F29: LBS. | G29: 0 | H29: =G29*ACRES -> 0 | I29: 0.5 | J29: =H29*I29 -> 0 | K29: 0
B30: LIME | F30: TON | G30: 0 | H30: =G30*F16 -> 0 | I30: 24 | J30: =H30*I30 -> 0 | K30: 0
B31: FERTILIZER: | K31: 0
B32: NITROGEN | F32: LB. | G32: 125 | H32: =G32*F16 -> 6250 | I32: 0.75 | J32: =H32*I32 -> 4687.5 | K32: 93.75
B33: P205 | F33: LB. | G33: 0 | H33: =G33*F16 -> 0 | I33: 0.6 | J33: =H33*I33 -> 0 | K33: 0
B34: K20 | F34: LB. | G34: 0 | H34: =G34*F16 -> 0 | I34: 0.55 | J34: =H34*I34 -> 0 | K34: 0
B35: MACHINERY | K35: 0
B36: FUEL | F36: GAL. | G36: 0 | H36: =G36*F16 -> 0 | I36: 4.5 | J36: =H36*I36 -> 0 | K36: 0
B37: REPAIRS & MAINT. | F37: ACRE | G37: 0 | H37: =G37*F16 -> 0 | I37: =1.53+0.62 -> 2.15 | J37: =H37*I37 -> 0 | K37: 0
B38: LAND RENTAL | F38: ACRE | G38: 0 | H38: =G38*F16 -> 0 | I38: 0 | J38: =H38*I38 -> 0 | K38: 0
B39: LABOR | F39: HRS. | G39: 0 | H39: =G39*F16 -> 0 | I39: 9.02 | J39: =H39*I39 -> 0 | K39: 0
B40: Custom Planting | F40: Acre | G40: 0 | H40: =G40*F16 -> 0 | I40: 12 | J40: =H40*I40 -> 0 | K40: 0
B41: INTEREST ON OP. CAP. | F41: % | G41: 1 | H41: =SUM(J25:J40)*0.5 -> 2951.25 | I41: 0.07 | J41: =+(I41*H41)*days/365 -> 84.8989726 | K41: 1.697979452
B42: TOTAL VARIABLE COST | J42: =SUM(J25:J41) -> 5987.398973 | K42: 119.7479795
A44: Calculate Fixed Cost | B44: =IF($R$1=3,"FIXED COST:(No Fixed Cost for Variable Cost Budget","FIXED COST:(Click Appropriate Link for Calculation of Fixed Costs or Payments)") -> FIXED COST:(No Fixed Cost for Variable Cost Budget | H44: =IF($R$1<>3,ACRES,"") ->  | I44: =IF($R$1=1,TFC,IF($R$1=2,payment,"")) ->  | J44: =IF($R$1<>3,I44*H44,"") -> 
A45: Calculate Fixed Payment | B45: =IF($R$1=1,"OVERHEAD"," ") ->  | F45: =IF($R$1=1,"ACRE"," ") ->  | H45: =IF($R$1=1,ACRES,"") ->  | I45: =IF($R$1=1,3,"") ->  | J45: =IF($R$1=1,I45*H45,"") -> 
B46: =IF($R$1=1,"MANAGEMENT"," ") ->  | F46: =IF($R$1=1,"% EXPENSES"," ") ->  | H46: =IF($R$1=1,tVC,"") ->  | I46: =IF($R$1=1,0.05,"") ->  | J46: =IF($R$1=1,I46*H46,"") -> 
B47: =IF($R$1=1,"LAND"," ") ->  | F47: =IF($R$1=1,"ACRE"," ") ->  | H47: =IF($R$1=1,ACRES,"") ->  | I47: =IF($R$1=1,0," ") ->  | J47: =IF($R$1=1,I47*H47,"") -> 
B48: TOTAL FIXED COST | J48: =+SUM(J44:J47) -> 0
B50: TOTAL COST | J50: =+J48+tvc_grazing -> 5987.398973
B59: SENSITIVITY ANALYSIS-VARIABLE COSTS
C61: Cost Per Grazing Day at Various Combinations of Grazing Days & Costs Per Acre
D62: -0.25 | E62: -0.1 | F62: Expected | G62: +10% | H62: +25%
C63: Grazing Days | D63: =+F63*0.75 -> 4490.549229 | E63: =+F63*0.9 -> 5388.659075 | F63: =+tvc_grazing -> 5987.398973 | G63: =+F63*1.1 -> 6586.13887 | H63: =+F63*1.25 -> 7484.248716
C64: 30 | D64: =+D$63/$C64 -> 149.6849743 | E64: 179.6219692 | F64: 199.5799658 | G64: 219.5379623 | H64: 249.4749572
C65: 60 | D65: 74.84248716 | E65: 89.81098459 | F65: 99.78998288 | G65: 109.7689812 | H65: 124.7374786
C66: 90 | D66: 49.89499144 | E66: 59.87398973 | F66: 66.52665525 | G66: 73.17932078 | H66: 83.15831906
C67: 120 | D67: 37.42124358 | E67: 44.90549229 | F67: 49.89499144 | G67: 54.88449058 | H67: 62.3687393
C68: 150 | D68: 29.93699486 | E68: 35.92439384 | F68: 39.91599315 | G68: 43.90759247 | H68: 49.89499144
C69: 180 | D69: 24.94749572 | E69: 29.93699486 | F69: 33.26332763 | G69: 36.58966039 | H69: 41.57915953
C72: Grazing Days Required to Breakeven at Various Dollars Per Day Drylot Cost & Per Acre Cost
D73: -0.25 | E73: -0.1 | F73: Expected | G73: +10% | H73: +25%
C74: $/Day Drylot Costs | D74: =+D63 -> 4490.549229 | E74: =+E63 -> 5388.659075 | F74: =+F63 -> 5987.398973 | G74: =+G63 -> 6586.13887 | H74: =+H63 -> 7484.248716
C75: 0.25 | D75: =+D$74/$C75 -> 17962.19692 | E75: 21554.6363 | F75: 23949.59589 | G75: 26344.55548 | H75: 29936.99486
C76: =+C75+0.25 -> 0.5 | D76: 8981.098459 | E76: 10777.31815 | F76: 11974.79795 | G76: 13172.27774 | H76: 14968.49743
C77: =+C76+0.25 -> 0.75 | D77: 5987.398973 | E77: 7184.878767 | F77: 7983.19863 | G77: 8781.518493 | H77: 9978.998288
C78: =+C77+0.25 -> 1 | D78: 4490.549229 | E78: 5388.659075 | F78: 5987.398973 | G78: 6586.13887 | H78: 7484.248716
C79: =+C78+0.25 -> 1.25 | D79: 3592.439384 | E79: 4310.92726 | F79: 4789.919178 | G79: 5268.911096 | H79: 5987.398973
O97: * | P97: Must match budget Entries | T97: *
O98: * | P98: - | T98: *
O101: * | P101: =+F16 -> 50 | Q101: ACRE | T101: *
O102: * | P102: =+#REF! ->  | Q102: Best Y | R102: =+#REF! ->  | S102: Best P | T102: *
O103: * | P103: =+#REF! ->  | Q103: Opt. Y | R103: =+#REF! ->  | S103: Opt. P | T103: *
O104: * | P104: =+#REF! ->  | Q104: Med. Y | R104: =#REF! ->  | S104: Med. P | T104: *
O105: * | P105: =+#REF! ->  | Q105: Pess. Y | R105: =#REF! ->  | S105: Pess. P | T105: *
O107: * | P107: =+#REF! ->  | Q107: Worst Y | R107: =J20 -> 0 | S107: Worst P | T107: *
O108: * | P108: 0 | Q108: H&MC | T108: *
O109: * | P109: =+G68 -> 43.90759247 | Q109: T.C. | T109: *
O110: * | P110: * | T110: *
O111: : | P111: - | T111: :
O113: : | Q113: Calculations | T113: :
O115: : | P115: - | T115: :
O116: : | P116: =0.04*P102+0.25*P103+0.42*P104+0.25*P105+0.04*P107 ->  | Q116: Exp. Y | R116: =0.04*R102+0.25*R103+0.42*R104+0.25*R105+0.04*R107 ->  | S116: Exp. P | T116: :
O118: : | P118: =0.25*(P102-P116)+0.5*(P103-P116) ->  | Q118: SYO | R118: =0.25*(R102-R116)+0.5*(R103-R116) ->  | S118: SPO | T118: :
O119: : | P119: =0.25*(P116-P107)+0.5*(P116-P105) ->  | Q119: SYP | R119: =0.25*(R116-R107)+0.5*(R116-R105) ->  | S119: SPP | T119: :
O120: : | P120: =P118^2 ->  | Q120: VYO | R120: =R118^2 ->  | S120: VPO | T120: :
O121: : | P121: =P119^2 ->  | Q121: VYP | R121: =R119^2 ->  | S121: VPP | T121: :
O122: : | P122: - | T122: :
O123: : | P123: =(P116^2*R120)+(R116-P108)^2*P120 ->  | Q123: VTRHH | R123: =(P116^2*R121)+(R116-P108)^2*P121 ->  | S123: VTRLL | T123: :
O124: : | P124: =(P116^2*R120)+(R116-P108)^2*P121 ->  | Q124: VTRHL | R124: =P116^2*R121+(R116-P108)^2*P120 ->  | S124: VTRLH | T124: :
O125: : | P125: =SQRT(P123) ->  | Q125: STRHH | R125: =SQRT(R123) ->  | S125: STRLL | T125: :
O127: : | P127: =SQRT(P124) ->  | Q127: STRHL | R127: =SQRT(R124) ->  | S127: STRLH | T127: :
O128: : | P128: =0.66*P125+0.17*P127+0.17*R127 ->  | Q128: STRO | R128: =0.66*R125+0.17*P127+0.17*R127 ->  | S128: STRP | T128: :
O129: : | P129: - | T129: :
O130: : | P130: Calculation of NR and for Z values | T130: :
O140: : | P140: - | T140: :
O141: : | P141: =R104 ->  | Q141: MP | R141: =+P147-P145 ->  | S141: ENR_MNR | T141: :
O142: : | P142: =P104 ->  | Q142: MY | R142: =P101*P125 ->  | S142: STRHH | T142: :
O143: : | P143: =+P146+0.33*(R147-R146) ->  | Q143: MTR | R143: =P101*R125 ->  | S143: STRLL | T143: :
O144: : | P144: =+G68 -> 43.90759247 | Q144: MTC | R144: =P101*P127 ->  | S144: STRHL | T144: :
O145: : | P145: =P143-P144 ->  | Q145: MNR | R145: =P101*R127 ->  | S145: STRLH | T145: :
O146: : | P146: =P101*P116*R116 ->  | Q146: ETR | R146: =P101*P128 ->  | S146: STRO | T146: :
O147: : | P147: =P146-P144 ->  | Q147: ENR | R147: =P101*R128 ->  | S147: STRP | T147: : | AV147: 1
O148: : | P148: - | T148: :
P150: =+D88>=P145 ->  | Q150: =ABS((D88-P147)/IF(P150,R146,R147)) ->  | R150: =MIN(2.5,ABS((D88-(P145+R141*ABS(D88-P145)/ABS(IF(P150,R146+R141,R147-R141))*MIN(1,Q150)))/(MIN(1.52,Q150)/1.52*IF(P150,R142,R143)+(1.52-MIN(1.52,Q150))/3.04*R144+(1.52-MIN(1.52,Q150))/3.04*R145))) ->  | S150: =1/(1+(0.2316419*R150)) ->  | T150: =0.398942281*((2.71828)^((-(R150^2)/2))) ->  | U150: =T150*(0.31938153*S150-0.356563782*S150^2+1.781477937*S150^3-1.821255978*S150^4+1.330274429*S150^5) ->  | V150: =+E88>=P145 ->  | W150: =ABS((E88-P147)/IF(V150,R146,R147)) ->  | X150: =MIN(2.5,ABS((E88-(P145+R141*ABS(E88-P145)/ABS(IF(V150,R146+R141,R147-R141))*MIN(1,W150)))/(MIN(1.52,W150)/1.52*IF(V150,R142,R143)+(1.52-MIN(1.52,W150))/3.04*R144+(1.52-MIN(1.52,W150))/3.04*R145))) ->  | Y150: =1/(1+(0.2316419*X150)) ->  | Z150: =0.398942281*((2.71828)^((-(X150^2)/2))) ->  | AA150: =Z150*(0.31938153*Y150-0.356563782*Y150^2+1.781477937*Y150^3-1.821255978*Y150^4+1.330274429*Y150^5) ->  | AB150: =+F88>=P145 ->  | AC150: =ABS((F88-P147)/IF(AB150,R146,R147)) ->  | AD150: =MIN(2.5,ABS((F88-(P145+R141*ABS(F88-P145)/ABS(IF(AB150,R146+R141,R147-R141))*MIN(1,AC150)))/(MIN(1.52,AC150)/1.52*IF(AB150,R142,R143)+(1.52-MIN(1.52,AC150))/3.04*R144+(1.52-MIN(1.52,AC150))/3.04*R145))) ->  | AE150: =1/(1+(0.2316419*AD150)) ->  | AF150: =0.398942281*((2.71828)^((-(AD150^2)/2))) ->  | AG150: =AF150*(0.31938153*AE150-0.356563782*AE150^2+1.781477937*AE150^3-1.821255978*AE150^4+1.330274429*AE150^5) -> 
R151: =MIN(2.5,ABS((D88-P147)/(MIN(1.52,Q150)/1.52*IF(P150,R142,R143)+(1.52-MIN(1.52,Q150))/3.04*R144+(1.52-MIN(1.52,Q150))/3.04*R145))) ->  | X151: =MIN(2.5,ABS((E88-P147)/(MIN(1.52,W150)/1.52*IF(V150,R142,R143)+(1.52-MIN(1.52,W150))/3.04*R144+(1.52-MIN(1.52,W150))/3.04*R145))) ->  | AD151: =MIN(2.5,ABS((F88-P147)/(MIN(1.52,AC150)/1.52*IF(AB150,R142,R143)+(1.52-MIN(1.52,AC150))/3.04*R144+(1.52-MIN(1.52,AC150))/3.04*R145))) ->  | AE151: =1/(1+(0.2316419*AD151)) ->  | AF151: =0.398942281*((2.71828)^((-(AD151^2)/2))) ->  | AG151: =AF151*(0.31938153*AE151-0.356563782*AE151^2+1.781477937*AE151^3-1.821255978*AE151^4+1.330274429*AE151^5) -> 
P152: =+G88>=P145 ->  | Q152: =ABS((G88-P147)/IF(P152,R146,R147)) ->  | R152: =MIN(2.5,ABS((G88-(P145+R141*ABS(G88-P145)/ABS(IF(P152,R146+R141,R147-R141))*MIN(1,Q152)))/(MIN(1.52,Q152)/1.52*IF(P152,R142,R143)+(1.52-MIN(1.52,Q152))/3.04*R144+(1.52-MIN(1.52,Q152))/3.04*R145))) ->  | V152: =+H88>=P145 ->  | W152: =ABS((H88-P147)/IF(V152,R146,R147)) ->  | X152: =MIN(2.5,ABS((H88-(P145+R141*ABS(H88-P145)/ABS(IF(V152,R146+R141,R147-R141))*MIN(1,W152)))/(MIN(1.52,W152)/1.52*IF(V152,R142,R143)+(1.52-MIN(1.52,W152))/3.04*R144+(1.52-MIN(1.52,W152))/3.04*R145))) ->  | AB152: =+I88>=P145 ->  | AC152: =ABS((I88-P147)/IF(AB152,R146,R147)) ->  | AD152: =MIN(2.5,ABS((I88-(P145+R141*ABS(I88-P145)/ABS(IF(AB152,R146+R141,R147-R141))*MIN(1,AC152)))/(MIN(1.52,AC152)/1.52*IF(AB152,R142,R143)+(1.52-MIN(1.52,AC152))/3.04*R144+(1.52-MIN(1.52,AC152))/3.04*R145))) ->  | AE152: =1/(1+(0.2316419*AD152)) ->  | AF152: =0.398942281*((2.71828)^((-(AD152^2)/2))) ->  | AG152: =AF152*(0.31938153*AE152-0.356563782*AE152^2+1.781477937*AE152^3-1.821255978*AE152^4+1.330274429*AE152^5) -> 
R153: =MIN(2.5,ABS((G88-P147)/(MIN(1.52,Q152)/1.52*IF(P152,R142,R143)+(1.52-MIN(1.52,Q152))/3.04*R144+(1.52-MIN(1.52,Q152))/3.04*R145))) ->  | X153: =MIN(2.5,ABS((H88-P147)/(MIN(1.52,W152)/1.52*IF(V152,R142,R143)+(1.52-MIN(1.52,W152))/3.04*R144+(1.52-MIN(1.52,W152))/3.04*R145))) ->  | AD153: =MIN(2.5,ABS((I88-P147)/(MIN(1.52,AC152)/1.52*IF(AB152,R142,R143)+(1.52-MIN(1.52,AC152))/3.04*R144+(1.52-MIN(1.52,AC152))/3.04*R145))) ->  | AE153: =1/(1+(0.2316419*AD153)) ->  | AF153: =0.398942281*((2.71828)^((-(AD153^2)/2))) ->  | AG153: =AF153*(0.31938153*AE153-0.356563782*AE153^2+1.781477937*AE153^3-1.821255978*AE153^4+1.330274429*AE153^5) -> 
P154: =+J88>=P145 ->  | Q154: =ABS((J88-P147)/IF(P154,R146,R147)) ->  | R154: =MIN(2.5,ABS((J88-(P145+R141*ABS(J88-P145)/ABS(IF(P154,R146+R141,R147-R141))*MIN(1,Q154)))/(MIN(1.52,Q154)/1.52*IF(P154,R142,R143)+(1.52-MIN(1.52,Q154))/3.04*R144+(1.52-MIN(1.52,Q154))/3.04*R145))) ->  | V154: =0>=P145 ->  | W154: =ABS((0-P147)/IF(V154,R146,R147)) ->  | X154: =MIN(2.5,ABS((0-(P145+R141*ABS(0-P145)/ABS(IF(V154,R146+R141,R147-R141))*MIN(1,W154)))/(MIN(1.52,W154)/1.52*IF(V154,R142,R143)+(1.52-MIN(1.52,W154))/3.04*R144+(1.52-MIN(1.52,W154))/3.04*R145))) -> 
R155: =MIN(2.5,ABS((J88-P147)/(MIN(1.52,Q154)/1.52*IF(P154,R142,R143)+(1.52-MIN(1.52,Q154))/3.04*R144+(1.52-MIN(1.52,Q154))/3.04*R145))) ->  | X155: =MIN(2.5,ABS((0-P147)/(MIN(1.52,W154)/1.52*IF(V154,R142,R143)+(1.52-MIN(1.52,W154))/3.04*R144+(1.52-MIN(1.52,W154))/3.04*R145))) -> 
P160: EXPDATA
P161: =P101 -> 50 | Q161: =P116 ->  | R161: =R116 ->  | S161: =I68 -> 0 | T161: =R146 ->  | U161: =R147 ->  | V161: =R142 ->  | W161: =R144 ->  | X161: =R143 ->  | Y161: =R145 -> 
B192: ALTB for calculation and return to breakeven table;
B193: ALTR for calculation and return to risk rated return table;
B194: ALTI for return to Instructions;
B195: HOME for return to beginning of budget.
B245: ALTB for calculation and return to breakeven table;
B246: ALTR for calculation and return to risk rated return table;
B248: HOME for return to beginning of budget.

Sheet Feed Cost
A1: Animal Type | B1: Steer
A2: Gain Target | B2: 1.5
A3: Calf weight | B3: 650
A4: Days fed | B4: 30
B5: $/ton | C5: $/# | D5: % of Ration | E5: #/ton | F5: Cost/ton
A6: corn | B6: 100 | C6: =+B6/2000 -> 0.05 | D6: 0.65 | E6: =+D6*2000 -> 1300 | F6: =+E6*C6 -> 65
A7: whole cottonseed | B7: 125 | C7: =+B7/2000 -> 0.0625 | D7: 0.1 | E7: =+D7*2000 -> 200 | F7: =+E7*C7 -> 12.5
A8: gin trash | B8: 15 | C8: =+B8/2000 -> 0.0075 | D8: 0.15 | E8: =+D8*2000 -> 300 | F8: =+E8*C8 -> 2.25
A9: Soybean Meal | B9: 250 | C9: =+B9/2000 -> 0.125 | D9: 0.1 | E9: =+D9*2000 -> 200 | F9: =+E9*C9 -> 25
D10: =+SUM(D6:D9) -> 1 | E10: Total | F10: =SUM(F6:F9) -> 104.75
E11: Total $/# | F11: =+F10/2000 -> 0.052375
A13: Consumption | B13: # fed/day | C13: Cost/day | D13: Total cost | E13: total # fed | F13: $/Cwt
A14: 0.005 | B14: =+A14*$B$3 -> 3.25 | C14: =+B14*$F$11 -> 0.17021875 | D14: =+C14*$B$4 -> 5.1065625 | E14: =+B14*$B$4 -> 97.5
A15: 0.01 | B15: 6.5 | C15: 0.3404375 | D15: 10.213125 | E15: =+B15*$B$4 -> 195
A16: 0.015 | B16: 9.75 | C16: 0.51065625 | D16: 15.3196875 | E16: 292.5
A17: 0.0175 | B17: 11.375 | C17: 0.595765625 | D17: 17.87296875 | E17: 341.25
A18: 0.02 | B18: 13 | C18: 0.680875 | D18: 20.42625 | E18: 390
A19: 0.022 | B19: 14.3 | C19: 0.7489625 | D19: 22.468875 | E19: 429
A20: 0.025 | B20: 16.25 | C20: 0.85109375 | D20: 25.5328125 | E20: 487.5

Sheet Procurement
I2: Return to Main Budget
B3: Procurement Cost Detail
B5: ITEM | E5: UNIT | F5: QUANTITY | G5: PRICE | H5: AMOUNT
H6: ($/hd.)
B7: Order Buying | E7: CWT. | F7: 2 | G7: 0.5 | H7: =F7*G7 -> 1
B8: Hauling | E8: MILES | F8: 100 | G8: 3.5 | H8: =+G8*F8/34 -> 10.29411765
B10: TOTAL PROCUREMENT COST | H10: =SUM(H7:H8) -> 11.29411765
B13: Auction & Hauling Cost Detail | I13: Return to Main Budget
B15: ITEM | E15: UNIT | F15: QUANTITY | G15: PRICE | H15: AMOUNT
B16: Commission | E16: % | F16: =+Main!H28*Main!H29 -> 1037.5 | G16: 0.02 | H16: =+G16*F16 -> 20.75
B17: Yardage | E17: Day | F17: 1 | G17: 0 | H17: =+G17*F17 -> 0
B18: Hauling | E18: Miles | F18: 100 | G18: 0 | H18: =+G18*F18/24 -> 0
B20: Total Auction & Hauling Cost | H20: =+SUM(H16:H18) -> 20.75

Sheet Fixed_Cost
B3: INVESTMENT AND ANNUAL FIXED COST
B4: (Check All Higlighted Entries this Page)
D6: NO. OF CALVES STOCKERED: | G6: 130
D7: NO. OF ACRES: | G7: 100 | J7: Return to Budget
D8: INTEREST RATE: | G8: 0.08
D10: % OF TIME FOR | G10: SALVAGE | H10: YRS. OF | I10: CALC.
B11: ITEM | D11: THIS ENTERPRISE | F11: COST | G11: VALUE | H11: LIFE | I11: DEPR. | J11: TOTAL
B12: CATTLE EQUIP: | E12: (%) | H12: (Yr.) | I12: ($/yr.)
B13: FENCING | E13: 1 | F13: =1.8*1800 -> 3240 | G13: 0 | H13: 15 | I13: =IF(F13>0,E13*(F13-G13)/H13,0) -> 216
B14: CORRAL & LOADING CHUTE | E14: 1 | F14: 2200 | G14: 0 | H14: 10 | I14: 220
B15: FEED BUNKS | E15: 1 | F15: 2070 | G15: 0 | H15: 10 | I15: 207
B16: MISC. EQUIPMENT | E16: 1 | F16: 500 | G16: 0 | H16: 10 | I16: 50
B17: OTHER | E17: 0 | F17: 0 | G17: 0 | H17: 0 | I17: 0
B18: OTHER | E18: 0 | F18: 0 | G18: 0 | H18: 0 | I18: 0
B19: OTHER | E19: 0 | F19: 0 | G19: 0 | H19: 0 | I19: 0
B20: MACHINERY & EQUIPMENT:
B21: TRACTOR | E21: 0.08 | F21: 25000 | G21: 10000 | H21: 10 | I21: =IF(F21>0,E21*(F21-G21)/H21,0) -> 120
B22: GRAIN DRILL | E22: 1 | F22: 5000 | G22: 1000 | H22: 10 | I22: 400
B23: DISK | E23: 0.25 | F23: 6500 | G23: =0.2*F23 -> 1300 | H23: 10 | I23: 130
B24: PLOW | E24: 0.25 | F24: 7000 | G24: =0.2*F24 -> 1400 | H24: 10 | I24: 140
B25: OTHER SEEDING EQUIP. | E25: 0 | F25: 0 | G25: 0 | H25: 0 | I25: 0
B26: OTHER | E26: 0 | F26: 0 | G26: 0 | H26: 0 | I26: 0
B27: LAND | E27: 0 | F27: 50000 | G27: 50000 | H27: 30 | I27: 0
B30: TOTAL CATTLE INVESTMENT | F30: =+F13*E13+F14*E14+F15*E15+F16*E16+F17*E17+F18*E18+F19*E19 -> 8010 | G30: =+G13*E13+G14*E14+G15*E15+G16*E16+E17*G17+E18*G18+E19*G19 -> 0
B31: TOTAL MACH. & EQUIP. INVEST. | F31: =+F21*E21+F22*E22+F23*E23+F24*E24+F25*E25+F26*E26+F27*E27 -> 10375 | G31: =+G21*E21+G22*E22+G23*E23+G24*E24+G25*E25+G26*E26+G27*E27 -> 2475
B33: TOTAL CATTLE EQUIP. DEPRECIATION | J33: =SUM(I13:I19) -> 693
B34: TOTAL MACH. & EQUIP. DEPRECIATION | J34: =SUM(I21:I27) -> 790
B36: INTEREST ON CATTLE INVEST. (AVE. INV. TIMES INT. RATE) | J36: =AVERAGE(F30:G30)*G8 -> 320.4
B37: INTEREST ON MACH. & EQUIP. INVEST. (AVE. INV. TIMES INT. RATE) | J37: =AVERAGE(F31:G31)*G8 -> 514
B39: CATTLE EQUIP. TAX & INS., | F39: AVE. INV. TIMES | H39: 0.014 | J39: =AVERAGE(F30:G30)*H39 -> 56.07
B40: MACH & EQUIP. TAX & INS., | F40: AVE. INV. TIMES | H40: 0.014 | J40: =AVERAGE(F31:G31)*H40 -> 89.95
B42: TOTAL ANNUAL FIXED COST | J42: =SUM(J33:J40) -> 2463.42
I44: Per Head Marketed | J44: Total
B45: ANNUAL CATTLE EQUIP. FIXED COST | I45: =+cattle_fixed/sold -> 10.80272727 | J45: =SUM(J33,J36,J39) -> 1069.47
B46: TOTAL ANNUAL MACHINERY & EQUIPMENT FIXED COST PER ACRE | I46: =+mach_fixed/ACRES -> 27.879 | J46: =SUM(J34,J37,J40) -> 1393.95

Sheet Fixed_Payment
B2: Return to Budget
B3: ANNUAL ENTERPRISE FIXED OUTLAYS
B4: Check All Highlighted Entries this Page)
E6: NO. OF ACRES: | G6: 100
E7: NO. OF HEAD: | G7: =+sold -> 99
B10: DEBT PAYMENT CALCULATION ON NEW INVESTMENT:
B11: (For Use In Calculating Debt Payments on New Investment)
E12: UNIT | F12: TOTAL | G12: -------FINANCING-------
B13: ITEM | D13: NUMBER | E13: COST | F13: COST | G13: AMOUNT | H13: YEARS | I13: INT.RATE | J13: PAYMENT
B14: FACILITIES:
B15: FENCE (MILES) | D15: 1.8 | E15: 1800 | F15: =D15*E15 -> 3240 | G15: 0.5 | H15: 7 | I15: 0.11 | J15: =PMT(I15,H15,-F15*G15) -> 343.7887365
B16: CORRAL &
B17: LOADING CHUTE | F17: 2200 | G17: 0.5 | H17: 7 | I17: 0.11 | J17: =PMT(I17,H17,-F17*G17) -> 233.4367964
B18: FEED BUNK | F18: =9*G7 -> 891 | G18: 0.5 | H18: 7 | I18: 0.11 | J18: =PMT(I18,H18,-F18*G18) -> 94.54190254
B19: GRINDERMIXER | F19: 7000 | G19: 0.5 | H19: 7 | I19: 0.11 | J19: =PMT(I19,H19,-F19*G19) -> 742.7534431
B20: GRAIN BIN (2000 BU.) | F20: 2300 | G20: 0.5 | H20: 7 | I20: 0.11 | J20: =PMT(I20,H20,-F20*G20) -> 244.0475599
B21: MISC. EQUIP. | F21: 400 | G21: 0.5 | H21: 7 | I21: 0.11 | J21: =PMT(I21,H21,-F21*G21) -> 42.44305389
B23: LAND | D23: =Main!F18 -> 50 | E23: 500 | F23: =D23*E23 -> 25000 | G23: 0 | H23: 30 | I23: 0.1 | J23: =PMT(I23,H23,-F23*G23) -> 0
B25: CALCULATED TOTAL ANNUAL DEBT PAYMENT | J25: =SUM(J15:J23) -> 1701.011492
B28: CURRENT ANNUAL DEBT PAYMENTS:
B29: (For Use In Totaling Debt Payments on Existing Investment)
B31: LOAN # 1 | J31: 0
B32: LOAN # 2 | J32: 0
B33: LOAN # 3 | J33: 0
B34: LOAN # 4 | J34: 0
B35: LOAN # 5 | J35: 0
E37: TOTAL ANNUAL DEBT PAYMENT | J37: =SUM(J25:J36) -> 1701.011492
E39: TAXES AND INSURANCE | J39: =+Fixed_Cost!J29 -> 0
E41: TOTAL ANNUAL FIXED OUTLAY | J41: =SUM(J37:J39) -> 1701.011492
E42: TOTAL ANNUAL FIXED OUTLAY PER HEAD | J42: =+J41/G7 -> 17.18193427

Sheet G

Sheet H

Sheet I

Sheet J

Sheet K

Sheet L
N1: -23595.59459 | O1: 0.02275009265
N2: -18314.6126 | O2: 0.06680727938
A3: 1 | N3: -13033.63061 | O3: 0.1586553132
N4: -10393.13961 | O4: 0.2266273226
N5: -7752.648615 | O5: 0.3085375586
N6: -5112.157619 | O6: 0.4012937347
N7: -2471.666622 | O7: 0.4999999998
N8: -2471.666622 | O8: 0.4999999998
N9: 168.8243744 | O9: 0.5987062653
N10: 2809.315371 | O10: 0.6914624414
N11: 5449.806368 | O11: 0.7733726774
N12: 8090.297364 | O12: 0.8413446868
N13: 13371.27936 | O13: 0.9331927206
N14: 18652.26135 | O14: 0.9772499073
